bitfinex/quotes_ETHUSD_20250314
["timestamp","ask_amount","ask_price","bid_price","bid_amount"]
[1741967126831,13.31639,1938.7,1938.3,5.15913]
[1741967127032,3.0,1938.5,1938.3,5.15913]
[1741967127361,5.15816,1938.7,1938.3,5.21071627]
[1741967127543,5.15853,1938.6,1938.2,5.1594]
[1741967127882,0.7657,1938.4,1938.0,5.15992]
[1741967128085,5.15924,1938.3,1937.9,10.3203]
[1741967128287,5.15924,1938.3,1937.9,10.32016]
[1741967128582,5.15924,1938.3,1937.9,10.32012]
[1741967128739,10.31861,1938.3,1937.9,5.16005]
[1741967129082,5.92554,1938.1,1937.5,0.7832]
[1741967129480,0.7657,1938.1,1937.8,5.16047]
[1741967129640,0.7657,1938.1,1937.9,5.16011]
[1741967129964,0.7718,1938.3,1938.0,10.31977]
[1741967130268,0.7718,1938.3,1938.0,5.15982]
[1741967130645,5.93098,1938.3,1938.0,5.15982]
[1741967131059,5.93098,1938.3,1937.9,10.32021]
[1741967131273,1.880792,1938.3,1937.8,0.7863]
[1741967131573,5.15951,1938.2,1937.8,5.16038]
[1741967131743,5.15972,1938.1,1937.8,5.16038]
[1741967132149,0.7632,1938.0,1937.7,5.16057]
[1741967132339,0.7632,1938.0,1937.7,10.3212]
[1741967132734,0.7632,1938.0,1937.7,6.27132]
[1741967132944,0.7632,1938.0,1937.3,6.71]
[1741967132945,3.7813,1937.8,1937.1,0.8244]
[1741967133160,5.16121,1937.6,1937.2,5.16188]
[1741967133475,5.94263,1937.5,1937.1,5.17218]
[1741967133640,0.7813,1937.5,1937.1,6.152559]
[1741967133839,0.7813,1937.5,1937.2,5.16199]
[1741967134873,0.7813,1937.5,1936.9,0.8144]
[1741967135060,0.8327,1937.4,1936.9,5.16276]
[1741967135259,0.8327,1937.4,1936.8,5.16294]
[1741967135466,5.9956,1936.9,1936.6,0.1164633]
[1741967135780,5.16342,1936.7,1936.6,0.1164633]
[1741967136071,5.99132,1936.7,1936.6,0.1164633]
[1741967136273,8.99132,1936.7,1936.6,0.1164633]
[1741967136956,8.98952,1936.7,1936.6,0.1164633]
[1741967137854,15.07952,1936.7,1936.6,0.1164633]
[1741967138160,18.51166687,1936.7,1936.6,0.1164633]
[1741967138347,5.99112,1936.1,1936.0,1.5]
[1741967138713,15.08112,1936.1,1936.0,1.5]
[1741967138990,18.5769062,1936.1,1936.0,1.5]
[1741967139148,5.98636,1935.5,1935.0,11.35743893]
[1741967139353,0.8195,1935.5,1935.1,5.16768]
[1741967139588,0.8195,1935.5,1935.2,5.16738]
[1741967139797,0.8195,1935.8,1935.7,5.16608]
[1741967140092,8.16531,1936.0,1935.5,10.3329]
[1741967140404,8.1654,1936.0,1935.5,6.19971]
[1741967140738,3.0,1936.0,1935.6,5.16624]
[1741967140849,3.0,1936.0,1935.5,5.16642]
[1741967141200,3.0,1936.0,1935.6,5.16628]
[1741967141378,8.16531,1936.0,1935.5,5.16642]
[1741967141587,3.0,1936.0,1935.3,0.8319]
[1741967141887,12.3012,1936.1,1935.7,5.16596]
[1741967142081,12.3012,1936.1,1935.8,0.516596]
[1741967142251,12.3012,1936.1,1935.7,5.16596]
[1741967142446,17.46622,1936.1,1935.6,5.16632]
[1741967142649,12.3012,1936.1,1935.7,5.16604]
[1741967142948,5.1653,1936.0,1935.5,5.16657]
[1741967143157,5.16568,1935.9,1935.4,5.16671]
[1741967143749,9.91195,1936.0,1935.4,5.16671]
[1741967143978,9.91195,1936.0,1935.5,5.16654]
[1741967144281,5.16567,1935.9,1935.4,5.16671]
[1741967144507,10.33138,1935.9,1935.4,5.16671]
[1741967144652,11.839163,1935.9,1935.4,5.16671]
[1741967144851,6.673473,1935.9,1935.4,5.16671]
[1741967145052,5.16583,1935.8,1935.3,5.21880333]
[1741967145284,5.16594,1935.8,1935.3,10.33416]
[1741967145448,0.8281,1935.7,1935.3,5.16702]
[1741967145654,5.335903,1935.9,1935.6,5.16635]
[1741967145852,3.8281,1935.9,1935.4,5.16689]
[1741967146081,6.09,1936.1,1935.9,5.1653]
[1741967146268,0.8281,1936.2,1935.8,5.16582]
[1741967146458,5.99289,1936.2,1935.5,0.8131]
[1741967146658,5.99289,1936.2,1935.3,5.683642]
[1741967146659,1.427365,1936.2,1935.3,5.683732]
[1741967146858,5.16502,1936.1,1935.5,5.16662]
[1741967147053,5.16555,1935.9,1935.4,5.16686]
[1741967147249,8.16584,1935.8,1935.4,5.16686]
[1741967147580,0.8269,1935.7,1935.5,5.16651]
[1741967147780,0.8269,1935.7,1935.4,5.16676]
[1741967147958,3.0,1935.8,1935.5,0.0516639]
[1741967148163,5.394,1935.9,1935.6,5.16622]
[1741967148362,3.8269,1936.0,1935.7,5.16605]
[1741967148562,3.8269,1936.0,1935.7,5.16593]
[1741967148873,3.8269,1936.0,1935.5,5.68822639]
[1741967149081,3.8269,1936.0,1935.6,5.16609]
[1741967149782,8.9922,1936.0,1935.6,5.16609]
[1741967149973,11.03981,1936.0,1935.5,5.16661]
[1741967150179,3.0,1935.8,1935.4,5.21831816]
[1741967150359,3.0,1935.8,1935.4,5.16666]
[1741967150559,3.0,1935.8,1935.4,5.21832135]
[1741967151089,5.16611,1935.7,1935.3,5.683742]
[1741967151290,5.16611,1935.7,1935.2,5.16725]
[1741967151491,5.16692,1935.4,1935.0,5.16785]
[1741967151695,5.16732,1935.3,1934.8,5.16837]
[1741967152036,5.16797,1935.0,1934.7,0.1164633]
[1741967152193,8.16849,1934.8,1934.7,0.1164633]
[1741967152390,9.9193,1934.8,1934.7,0.1164633]
[1741967152602,5.406,1934.9,1934.8,5.16849]
[1741967152774,3.0,1935.0,1934.7,0.1164633]
[1741967152971,3.0,1935.0,1934.7,10.98221863]
[1741967153277,0.8293,1935.1,1934.7,0.64500863]
[1741967153478,22.25109,1935.7,1934.7,3.6122495]
[1741967153479,0.8293,1935.4,1934.7,3.6122495]
[1741967153689,3.8293,1935.4,1934.7,5.2849633]
[1741967153881,3.8293,1935.4,1934.7,0.1164633]
[1741967154386,3.8293,1935.4,1935.0,5.16794]
[1741967154575,3.8293,1935.4,1935.1,5.16764]
[1741967154777,3.0,1935.4,1935.1,10.33513]
[1741967154977,5.41,1935.5,1935.1,6.201003]
[1741967155290,3.0,1935.4,1935.0,5.16776]
[1741967155462,5.16736,1935.3,1934.7,0.1164633]
[1741967155663,8.16695,1935.4,1934.9,5.16805]
[1741967155863,5.16752,1935.2,1934.8,5.16829]
[1741967156066,5.16798,1935.0,1934.7,0.1164633]
[1741967156271,5.99353,1935.1,1934.7,0.1164633]
[1741967156571,5.16834,1934.9,1934.7,0.1164633]
[1741967156775,5.16849,1934.8,1934.7,0.1164633]
[1741967156975,8.16849,1934.8,1934.7,0.1164633]
[1741967157173,10.111173,1934.8,1934.7,0.1164633]
[1741967157365,16.985573,1934.8,1934.7,0.1164633]
[1741967157707,11.817083,1934.8,1934.7,0.1164633]
[1741967157908,3.7844,1934.8,1934.7,0.1164633]
[1741967158117,3.0,1934.8,1934.7,0.1164633]
[1741967158278,0.7844,1935.1,1934.8,5.16838]
[1741967158498,5.454,1935.3,1934.8,5.16849]
[1741967158670,11.761841,1935.3,1934.7,5.2852033]
[1741967158863,12.684551,1935.3,1934.8,5.16832]
[1741967159097,11.544,1935.3,1935.0,5.16777]
[1741967159300,3.0,1935.2,1934.9,5.16822]
[1741967159611,8.16745,1935.2,1934.8,5.16848]
[1741967159780,10.65532,1935.2,1934.7,5.2851433]
[1741967159972,3.0,1935.2,1934.9,5.16819]
[1741967160308,3.0,1935.2,1935.0,5.16785]
[1741967160479,3.0,1935.2,1935.0,10.3356]
[1741967160808,6.17885824,1935.6,1934.7,0.9425633]
[1741967160809,11.25653,1935.6,1935.2,5.16718]
[1741967161008,0.8294,1935.6,1935.5,5.16662]
[1741967161216,5.16619,1935.7,1935.2,5.16727]
[1741967161518,12.7116,1935.8,1935.1,5.16767]
[1741967161806,5.16648,1935.6,1935.1,5.16746]
[1741967162091,5.16648,1935.6,1935.1,5.16754]
[1741967162293,5.16673,1935.5,1935.0,5.16794]
[1741967162519,5.16725,1935.3,1934.8,5.16846]
[1741967162715,5.1673,1935.3,1934.8,5.16834]
[1741967162867,5.16782,1935.1,1934.7,0.1164633]
[1741967163069,3.0,1934.9,1934.7,0.1164633]
[1741967163269,6.09,1935.1,1934.8,5.16846]
[1741967163508,6.09,1935.1,1934.9,5.16798]
[1741967163711,5.16835,1934.9,1934.7,0.1164633]
[1741967163898,11.775325,1934.8,1934.7,0.1164633]
[1741967164096,20.302325,1934.8,1934.7,0.1164633]
[1741967164865,15.133835,1934.8,1934.7,0.1164633]
[1741967165069,14.617,1934.8,1934.7,0.1164633]
[1741967165265,3.0,1934.8,1934.7,0.1164633]
[1741967165468,8.16849,1934.8,1934.7,0.1164633]
[1741967165697,3.0,1934.8,1934.7,0.1164633]
[1741967166073,8.16849,1934.8,1934.7,0.1164633]
[1741967166273,9.580513,1934.8,1934.7,0.1164633]
[1741967166575,15.670513,1934.8,1934.7,0.1164633]
[1741967166767,16.480113,1934.8,1934.7,0.1164633]
[1741967166970,0.7691,1934.0,1933.6,5.17153]
[1741967167184,5.17169,1933.7,1933.2,5.17277]
[1741967167397,8.17175,1933.6,1933.2,5.691047]
[1741967167594,3.0,1933.6,1933.2,5.690887]
[1741967167914,6.09,1933.9,1933.6,5.1715]
[1741967168097,6.09,1934.1,1933.9,10.34167]
[1741967168285,0.7691,1934.2,1934.0,5.17063]
[1741967168481,0.7691,1934.5,1934.1,5.17025]
[1741967168695,6.09,1934.6,1934.2,5.16989]
[1741967168906,8.16905,1934.6,1934.2,5.16989]
[1741967169202,17.97035675,1935.1,1934.6,5.16892]
[1741967169420,17.58485,1935.1,1934.6,5.16889]
[1741967169583,6.926535,1935.0,1934.6,5.16889]
[1741967169792,6.926535,1935.0,1934.5,5.16908]
[1741967169982,5.16795,1935.0,1934.0,1.343863]
[1741967170180,3.0,1934.7,1934.3,5.16971]
[1741967170377,5.16879,1934.7,1934.3,5.16976]
[1741967170578,3.7845,1934.6,1934.3,5.16982]
[1741967170900,3.7845,1934.6,1934.0,0.8268]
[1741967171081,5.288827,1934.6,1934.0,5.99742]
[1741967171282,8.16959,1934.4,1934.0,5.99742]
[1741967171605,0.8229,1934.9,1934.2,0.8038]
[1741967171806,5.99127,1934.9,1934.4,5.16942]
[1741967172111,0.8229,1935.2,1934.9,5.16822]
[1741967172407,0.69129,1935.2,1935.0,5.16793]
[1741967172608,0.8048,1935.4,1934.6,5.97752]
[1741967172777,0.8048,1935.4,1935.1,5.16751]
[1741967172969,3.8048,1935.4,1935.1,5.16751]
[1741967173409,6.064093,1935.4,1934.9,5.16816]
[1741967173581,5.16715,1935.3,1934.7,5.16861]
[1741967173782,0.897143,1935.4,1934.6,5.16895]
[1741967173783,5.16796,1935.0,1934.6,5.16895]
[1741967174005,3.0,1935.0,1934.7,5.1686]
[1741967174206,8.16797,1935.0,1934.5,11.32917]
[1741967174416,5.16834,1934.9,1934.5,5.16917]
[1741967174707,5.16798,1935.0,1934.2,5.94725]
[1741967174874,8.16878,1934.7,1934.2,5.94713]
[1741967175078,5.16949,1934.5,1934.0,5.17058]
[1741967175275,3.0,1934.4,1934.1,5.17015]
[1741967175503,3.0,1934.4,1934.2,5.17009]
[1741967175708,3.0,1934.4,1934.2,10.34001]
[1741967175911,3.0,1934.4,1934.3,5.16982]
[1741967176212,8.46969,1934.4,1933.9,5.98669]
[1741967176395,3.3,1934.4,1933.7,5.92329]
[1741967176705,12.5227,1934.6,1934.3,5.16982]
[1741967177012,3.0,1934.5,1933.9,5.17073]
[1741967177179,5.1699,1934.3,1933.9,5.17073]
[1741967177375,3.0,1934.5,1934.1,5.17033]
[1741967177585,3.0,1934.5,1934.1,5.17023]
[1741967177904,5.17023,1934.2,1933.7,0.7519]
[1741967178127,3.0,1934.5,1933.7,0.7519]
[1741967178319,5.94847,1934.1,1933.6,5.17155]
[1741967178505,5.94847,1934.1,1933.3,11.33242]
[1741967178506,8.17107,1933.9,1933.3,5.17225]
[1741967178690,8.17107,1933.9,1933.4,5.17201]
[1741967178888,0.8067,1933.8,1933.4,10.34413]
[1741967179087,6.8967,1933.8,1933.3,5.17234]
[1741967179292,6.8967,1933.8,1933.1,0.7737]
[1741967179293,6.4987,1934.1,1933.7,5.17143]
[1741967179621,6.4987,1934.1,1933.8,5.17104]
[1741967179788,6.4987,1934.1,1933.6,5.17165]
[1741967179789,0.8067,1934.1,1933.6,5.17165]
[1741967179989,0.8067,1934.1,1933.5,5.17179]
[1741967180220,5.17102,1933.9,1933.4,5.17208]
[1741967180516,5.688482,1933.8,1933.3,5.17235]
[1741967180690,5.17138,1933.8,1933.1,5.94649]
[1741967180887,5.93865,1933.6,1933.1,5.94649]
[1741967181118,5.17222,1933.5,1933.1,0.01]
[1741967181335,0.517222,1933.4,1933.1,0.01]
[1741967181618,6.8569,1933.6,1933.3,5.17248]
[1741967181790,6.8569,1933.6,1933.2,5.17266]
[1741967182200,6.8569,1933.6,1933.1,0.01]
[1741967182398,17.76475,1933.6,1933.1,5.18289]
[1741967182611,5.17271,1933.3,1933.1,0.01]
[1741967182791,5.17239,1933.4,1933.1,0.01]
[1741967183003,5.17223,1933.4,1933.1,0.01]
[1741967183309,12.05163,1933.3,1933.1,0.01]
[1741967183622,5.17277,1933.2,1933.1,0.01]
[1741967183921,7.47261,1933.2,1933.1,0.01]
[1741967184114,2.29984,1933.2,1933.1,0.01]
[1741967184287,5.29984,1933.2,1933.1,0.01]
[1741967185015,12.653,1933.3,1933.1,0.01]
[1741967185320,6.879,1933.3,1933.1,0.01]
[1741967185519,3.8253,1932.8,1932.7,0.1164633]
[1741967185720,9.9153,1932.8,1932.7,0.1164633]
[1741967186096,12.7193,1932.8,1932.7,0.1164633]
[1741967186510,5.94474,1933.1,1932.7,0.1164633]
[1741967186716,5.17331,1933.0,1932.7,0.1164633]
[1741967186915,8.17384,1932.8,1932.7,0.1164633]
[1741967187122,14.75284,1932.8,1932.7,0.1164633]
[1741967187496,15.669,1932.8,1932.7,0.1164633]
[1741967187994,20.84284,1932.8,1932.7,0.1164633]
[1741967188188,22.6294827,1932.8,1932.7,0.1164633]
[1741967188419,9.864,1932.8,1932.7,0.1164633]
[1741967189235,5.841,1933.0,1932.7,0.1164633]
[1741967189568,6.00484,1932.8,1932.7,0.1164633]
[1741967189893,0.831,1932.8,1932.7,0.1164633]
[1741967190100,15.09484,1932.8,1932.7,0.1164633]
[1741967190297,17.121699,1932.8,1932.7,0.1164633]
[1741967191308,5.17477,1932.5,1931.9,5.17602]
[1741967191632,5.865,1932.4,1932.1,5.17554]
[1741967192133,0.8191,1932.8,1932.5,5.17442]
[1741967192429,0.8191,1932.8,1932.4,5.17489]
[1741967192724,5.99299,1932.8,1932.4,1.034995]
[1741967192928,10.34861,1932.7,1932.2,5.17533]
[1741967193130,5.17439,1932.6,1932.2,5.17533]
[1741967193427,6.09,1932.7,1932.4,5.17475]
[1741967193632,6.09,1932.7,1932.4,10.34955]
[1741967193816,6.09,1932.7,1932.4,11.384495]
[1741967194125,6.09,1932.7,1932.4,5.17488]
[1741967194623,6.09,1932.7,1932.2,0.7816]
[1741967194823,5.17476,1932.5,1932.0,5.17581]
[1741967195046,0.8221,1932.3,1931.7,5.17663]
[1741967195200,0.8221,1932.3,1931.5,5.17711]
[1741967195201,5.17594,1932.1,1931.5,5.17711]
[1741967195392,6.09,1932.2,1931.9,5.17618]
[1741967195625,16.44123,1932.2,1931.7,5.17664]
[1741967195823,3.8221,1932.3,1931.5,5.777951]
[1741967195824,6.7251,1932.3,1931.5,5.777951]
[1741967196005,6.8611,1932.5,1932.1,5.17555]
[1741967196201,5.17513,1932.4,1931.9,5.96854]
[1741967196400,5.17507,1932.4,1931.9,5.96854]
[1741967196605,6.8611,1932.5,1932.2,5.17521]
[1741967196923,6.7448,1932.9,1932.5,5.17445]
[1741967197223,11.91854,1932.9,1932.4,10.34947]
[1741967197429,11.9186,1932.9,1932.4,5.17469]
[1741967197631,5.17384,1932.8,1932.2,5.17533]
[1741967197830,3.0,1932.8,1932.0,5.17583]
[1741967198023,5.17478,1932.5,1932.0,10.948513]
[1741967198217,3.0,1932.5,1932.1,5.17548]
[1741967198418,3.3,1932.7,1932.2,5.13896557]
[1741967198618,5.17421,1932.7,1932.2,5.17521]
[1741967198831,11.26407,1932.8,1932.4,5.17477]
[1741967199033,11.26407,1932.8,1932.3,0.517521]
[1741967199034,11.26397,1932.8,1932.3,0.517521]
[1741967199229,5.17411,1932.7,1932.3,0.517521]
[1741967199529,5.17484,1932.5,1932.0,5.772543]
[1741967199731,3.0,1932.7,1932.5,5.17446]
[1741967199919,6.09,1932.8,1932.5,5.17437]
[1741967200120,6.09,1932.8,1932.6,5.17417]
[1741967200441,5.174,1932.8,1932.3,5.17497]
[1741967200606,6.09,1933.1,1932.4,0.56924008]
[1741967200810,5.17326,1933.1,1932.6,5.17417]
[1741967201015,5.17303,1933.1,1932.6,5.17433]
[1741967201212,5.17303,1933.1,1932.7,5.17405]
[1741967201426,5.17303,1933.1,1932.7,5.17398]
[1741967201637,5.17303,1933.1,1932.4,0.517497]
[1741967201638,18.01357,1933.2,1932.4,0.517497]
[1741967201838,5.17318,1933.1,1932.7,5.17407]
[1741967202015,5.1734,1933.0,1932.4,10.34948]
[1741967202212,5.17354,1933.0,1932.5,5.17462]
[1741967202413,5.17354,1933.0,1932.5,5.17446]
[1741967202733,10.34628,1933.1,1932.7,5.17405]
[1741967202937,12.8238,1933.2,1932.9,5.17353]
[1741967203132,0.8264,1933.4,1933.3,5.1725]
[1741967203331,5.17126,1933.8,1933.4,5.17223]
[1741967203531,0.8264,1933.9,1933.8,5.17116]
[1741967203732,0.8264,1933.9,1933.6,5.17147]
[1741967203933,6.09,1934.0,1933.7,5.93713]
[1741967204240,6.09,1934.0,1933.7,0.7658]
[1741967204444,6.09,1934.0,1933.7,5.17132]
[1741967204745,6.09,1934.0,1933.7,10.34256]
[1741967205116,6.09,1934.0,1933.7,10.34255]
[1741967205314,6.09,1934.0,1933.7,5.17121]
[1741967205517,6.09,1934.0,1933.5,5.22366892]
[1741967205854,6.09,1934.0,1933.7,5.1712]
[1741967206357,6.09,1934.0,1933.7,10.34249]
[1741967206513,6.09,1934.0,1933.7,5.22290713]
[1741967206715,6.09,1934.0,1933.8,5.17092]
[1741967207213,5.16985,1934.3,1933.8,5.17101]
[1741967207452,2.236243,1934.3,1933.9,5.17076]
[1741967207632,7.406083,1934.3,1933.9,5.17076]
[1741967208169,6.09,1934.4,1934.1,10.34055]
[1741967208320,5.1689,1934.7,1933.9,0.7623]
[1741967208648,5.1689,1934.7,1934.1,5.17023]
[1741967208649,5.16919,1934.6,1934.1,5.17023]
[1741967208946,5.1689,1934.7,1934.2,5.16998]
[1741967209147,12.03562,1934.8,1934.4,5.16932]
[1741967209348,6.372522,1934.7,1934.2,10.33982]
[1741967209534,6.372522,1934.7,1934.2,5.16987]
[1741967209741,1.203562,1934.7,1934.3,5.1698]
[1741967210063,10.33897,1934.5,1934.0,5.17051]
[1741967210367,5.16969,1934.4,1933.9,5.93307]
[1741967210515,5.16983,1934.3,1933.9,5.93305]
[1741967210725,5.17024,1934.2,1933.7,5.96531]
[1741967210949,5.17046,1934.1,1933.7,5.17121]
[1741967211172,5.17009,1934.2,1933.5,11.14621]
[1741967211331,5.99231,1933.9,1933.4,5.1721]
[1741967211520,5.99231,1933.9,1933.5,5.17175]
[1741967211521,5.99221,1933.9,1933.5,5.17175]
[1741967211735,5.99234,1933.9,1933.2,0.8027]
[1741967211966,5.99234,1933.9,1933.4,5.17201]
[1741967212260,5.99234,1933.9,1932.5,0.8027]
[1741967212261,0.8213,1933.5,1932.5,0.8027]
[1741967212454,9.09,1933.4,1932.6,5.17421]
[1741967212620,5.17364,1932.9,1932.4,10.34953]
[1741967213149,5.17364,1932.9,1932.5,5.17461]
[1741967213519,11.11676,1933.0,1932.5,5.17461]
[1741967213720,5.17365,1932.9,1932.5,5.17461]
[1741967213920,5.17365,1932.9,1932.4,5.17471]
[1741967214151,5.17284,1933.2,1932.7,5.17397]
[1741967214465,5.1732,1933.1,1932.7,5.17393]
[1741967214832,5.1733,1933.0,1932.4,5.17471]
[1741967215032,10.86491,1932.9,1932.4,5.17471]
[1741967215237,5.17385,1932.8,1932.4,5.17471]
[1741967215646,5.98615,1932.8,1932.3,5.17505]
[1741967215856,5.98615,1932.8,1932.3,5.17497]
[1741967216057,6.7783,1932.8,1932.4,5.17471]
[1741967216261,11.95224,1932.8,1932.4,5.17471]
[1741967216429,11.95215,1932.8,1932.4,5.17471]
[1741967216630,6.09,1933.1,1932.4,5.17471]
[1741967216631,6.09,1933.1,1932.5,5.17464]
[1741967216961,11.26303,1933.1,1932.7,5.17396]
[1741967217127,11.26303,1933.1,1932.7,10.34796]
[1741967217328,11.26303,1933.1,1932.7,5.17396]
[1741967217528,6.09,1933.1,1932.7,5.17396]
[1741967217728,6.09,1933.1,1932.8,5.17383]
[1741967217940,5.17307,1933.1,1932.7,5.17396]
[1741967218827,6.00471,1933.2,1932.7,5.17387]
[1741967219127,0.8318,1933.2,1932.7,0.517387]
[1741967219334,6.09,1933.3,1933.1,5.17293]
[1741967219541,6.09,1933.3,1933.0,5.1733]
[1741967219929,6.09,1933.3,1932.9,5.17356]
[1741967220131,6.09,1933.3,1932.7,0.7726]
[1741967220326,6.09,1933.3,1932.8,5.17383]
[1741967220531,6.09,1933.3,1932.8,0.594643]
[1741967220832,6.09,1933.3,1933.1,5.17293]
[1741967221030,3.0,1933.7,1932.7,0.7726]
[1741967221031,11.26145,1933.7,1933.2,10.34528]
[1741967221231,5.17206,1933.5,1933.1,5.17302]
[1741967221448,5.17217,1933.5,1933.0,5.17329]
[1741967221661,17.20068,1933.7,1932.7,5.94669]
[1741967221982,12.029,1933.7,1933.1,5.17279]
[1741967222273,5.17196,1933.5,1933.1,5.17294]
[1741967222445,5.17196,1933.5,1933.2,5.17275]
[1741967222642,3.0,1933.6,1932.7,6.9326]
[1741967222848,5.17315,1933.1,1932.7,5.94656]
[1741967223061,0.517315,1933.1,1932.4,6.9856]
[1741967223259,5.17286,1933.2,1932.8,5.17375]
[1741967223443,5.17286,1933.2,1932.7,5.17409]
[1741967223444,5.17277,1933.2,1932.7,5.17409]
[1741967223640,5.17277,1933.2,1932.8,5.1738]
[1741967223843,5.17304,1933.1,1932.7,5.17404]
[1741967224043,5.766117,1933.2,1932.8,5.1738]
[1741967224250,0.593347,1933.2,1932.9,5.17351]
[1741967224444,0.593347,1933.2,1932.7,5.17397]
[1741967224445,5.17315,1933.1,1932.7,5.17397]
[1741967224666,5.7497997,1933.1,1932.7,5.17397]
[1741967224880,5.17279,1933.2,1932.8,5.22556606]
[1741967225060,3.0,1933.2,1932.3,6.16]
[1741967225262,15.056,1933.2,1932.5,5.17452]
[1741967225465,15.056,1933.2,1932.9,5.17353]
[1741967225665,5.17303,1933.1,1932.6,5.17427]
[1741967225864,5.1737,1932.9,1932.5,6.00073]
[1741967226183,5.1737,1932.9,1932.5,0.8262]
[1741967226337,5.1737,1932.9,1932.5,5.17449]
[1741967226533,5.95546,1932.8,1932.4,5.17483]
[1741967226738,6.551006,1932.8,1932.3,5.17493]
[1741967227038,5.962,1932.7,1931.7,1.02511978]
[1741967227273,11.15068,1932.3,1931.8,5.17629]
[1741967227574,7.090358,1932.3,1931.9,5.17614]
[1741967227788,5.968,1932.2,1931.4,5.17746]
[1741967227947,5.968,1932.2,1931.0,6.16]
[1741967227948,5.17626,1931.9,1931.5,5.17705]
[1741967228150,12.058,1932.2,1931.6,0.05176653]
[1741967228355,3.0,1932.5,1932.2,5.17528]
[1741967228552,3.0,1932.5,1932.3,5.17512]
[1741967228740,3.8294,1932.6,1932.3,5.17507]
[1741967228938,3.8294,1932.6,1932.0,5.17598]
[1741967229155,12.104,1932.7,1932.5,5.17464]
[1741967229348,0.8294,1933.0,1932.8,5.17367]
[1741967229545,12.09227,1933.2,1932.8,5.17367]
[1741967229749,6.00227,1933.2,1932.7,5.17405]
[1741967229950,5.17315,1933.1,1932.7,5.17405]
[1741967230351,0.8294,1933.0,1932.1,0.517598]
[1741967230558,10.3485,1932.7,1932.2,5.17524]
[1741967230865,10.3485,1932.7,1932.2,5.17523]
[1741967230866,6.004,1932.6,1932.2,5.17523]
[1741967231268,6.004,1932.6,1932.2,10.35049]
[1741967231572,6.004,1932.6,1932.1,5.1756]
[1741967231777,5.17504,1932.4,1931.9,5.17615]
[1741967232075,5.1764,1931.9,1931.3,5.98975]
[1741967232240,5.17635,1931.9,1931.4,5.17735]
[1741967232441,11.18198,1932.0,1931.5,0.05176733]
[1741967232658,0.8277,1932.3,1931.4,0.05176716]
[1741967232872,0.8277,1932.3,1932.1,5.17552]
[1741967233056,0.8277,1932.3,1931.9,5.17613]
[1741967233251,0.8277,1932.3,1931.7,5.1766]
[1741967233450,0.8277,1932.3,1931.9,5.17601]
[1741967233785,0.8277,1932.3,1932.0,5.17587]
[1741967233988,6.01,1932.5,1932.2,5.17529]
[1741967234287,6.01,1932.5,1932.0,5.17588]
[1741967234788,6.01,1932.5,1931.9,1.322601]
[1741967234987,11.18466,1932.5,1931.6,5.98029]
[1741967235292,11.18466,1932.5,1931.4,3.0]
[1741967235293,5.17614,1932.0,1931.5,5.17722]
[1741967235584,6.083,1932.0,1931.8,5.17625]
[1741967235741,6.085,1932.5,1932.2,5.17544]
[1741967235936,6.085,1932.5,1932.1,5.17561]
[1741967236169,6.085,1932.5,1932.2,5.17525]
[1741967236345,6.085,1932.5,1932.1,10.35142]
[1741967236672,5.17507,1932.4,1931.9,5.17606]
[1741967236873,5.1753,1932.3,1931.9,5.17606]
[1741967237047,5.17491,1932.4,1931.5,0.8325]
[1741967237251,5.17491,1932.4,1931.9,10.35216]
[1741967237571,5.17491,1932.4,1931.9,5.17604]
[1741967237870,0.517491,1932.3,1932.0,0.05175638]
[1741967238043,12.385604,1932.5,1932.1,10.3511]
[1741967238243,12.385704,1932.5,1932.0,5.17592]
[1741967238472,5.17491,1932.4,1931.7,5.1766]
[1741967238654,0.7696,1932.1,1931.6,5.17692]
[1741967238852,0.517491,1932.3,1931.7,5.17674]
[1741967239043,5.94802,1932.7,1932.2,5.17522]
[1741967239248,5.17478,1932.5,1932.0,5.17583]
[1741967239559,5.17493,1932.4,1932.0,5.17583]
[1741967239758,6.209901,1932.4,1932.0,5.17583]
[1741967240339,1.034971,1932.4,1932.1,5.17568]
[1741967240546,5.1749,1932.5,1932.0,5.17588]
[1741967240794,8.17491,1932.4,1932.0,5.17588]
[1741967241082,5.17583,1932.1,1931.6,5.17681]
[1741967241241,5.17583,1932.1,1931.7,5.17662]
[1741967241449,5.17544,1932.2,1931.5,0.8325]
[1741967241675,5.17582,1932.1,1931.7,5.17663]
[1741967241875,10.35174,1932.1,1931.7,5.17663]
[1741967242147,0.7901,1932.0,1931.4,5.17748]
[1741967242275,3.7901,1932.0,1931.1,5.17835]
[1741967242473,0.7901,1931.5,1931.2,5.17797]
[1741967242668,0.7901,1931.7,1931.2,0.517797]
[1741967242869,0.7901,1931.7,1930.9,6.0107]
[1741967242870,0.7901,1931.7,1931.4,5.17747]
[1741967243052,0.7901,1931.7,1931.3,10.35549]
[1741967243259,0.7901,1931.7,1930.9,6.01067]
[1741967243455,0.7901,1931.7,1931.4,5.17758]
[1741967243661,0.7901,1931.7,1931.4,5.17737]
[1741967243862,0.7901,1931.7,1931.3,5.17781]
[1741967244088,5.17636,1931.9,1931.5,5.17713]
[1741967244486,5.17661,1931.8,1931.4,5.17759]
[1741967244889,5.17667,1931.8,1931.4,5.17745]
[1741967245192,5.17667,1931.8,1931.2,5.17788]